[Event "Titled Tuesday Blitz August 09 Early 2022"]
[White "Shuvalov, Evgenij"]
[Black "Samarth, J Rao"]
[WhiteFideId "4187237"]
[BlackFideId "46652370"]
[WhiteElo "2058"]
[BlackElo "1514"]
[Result "1-0"]
[Round "03"]
[TimeControl "180+1"]
[Date "2022.08.09"]
[WhiteClock "0:00:49"]
[BlackClock "0:00:02"]

1. Nf3 {[%clk 0:03:00]}  d5 {[%clk 0:01:14]} 2. c4 {[%clk 0:02:58]}  e6 {[%clk 0:01:14]} 3. e3 {[%clk 0:02:57]}  Nf6 {[%clk 0:01:13]} 4. b3 {[%clk 0:02:56]}  c5 {[%clk 0:01:11]} 5. Bb2 {[%clk 0:02:56]}  Nc6 {[%clk 0:01:12]} 6. cxd5 {[%clk 0:02:54]}  exd5 {[%clk 0:01:13]} 7. Bb5 {[%clk 0:02:53]}  a6 {[%clk 0:01:12]} 8. Bxc6+ {[%clk 0:02:53]}  bxc6 {[%clk 0:01:13]} 9. O-O {[%clk 0:02:48]}  Bd6 {[%clk 0:01:10]} 10. d4 {[%clk 0:02:47]}  O-O {[%clk 0:01:06]} 11. dxc5 {[%clk 0:02:45]}  Bxc5 {[%clk 0:01:07]} 12. Nc3 {[%clk 0:02:43]}  Bg4 {[%clk 0:01:05]} 13. h3 {[%clk 0:02:42]}  Bh5 {[%clk 0:01:01]} 14. Rc1 {[%clk 0:02:41]}  Bd6 {[%clk 0:00:59]} 15. Na4 {[%clk 0:02:36]}  Rc8 {[%clk 0:00:58]} 16. Qd3 {[%clk 0:02:32]}  a5 {[%clk 0:00:53]} 17. Nd4 {[%clk 0:02:29]}  Bg6 {[%clk 0:00:52]} 18. Qa6 {[%clk 0:02:22]}  c5 {[%clk 0:00:23]} 19. Nb5 {[%clk 0:02:18]}  Be7 {[%clk 0:00:20]} 20. Rfd1 {[%clk 0:02:01]}  Ra8 {[%clk 0:00:10]} 21. Qc6 {[%clk 0:01:56]}  Rc8 {[%clk 0:00:09]} 22. Qa6 {[%clk 0:01:30]}  Ra8 {[%clk 0:00:08]} 23. Qb6 {[%clk 0:01:14]}  Qxb6 {[%clk 0:00:02]} 24. Nxb6 {[%clk 0:01:15]}  Rab8 {[%clk 0:00:02]} 25. Nxd5 {[%clk 0:01:15]}  Nxd5 {[%clk 0:00:02]} 26. Rxd5 {[%clk 0:01:16]}  Rxb5 {[%clk 0:00:02]} 27. Rd7 {[%clk 0:01:08]}  Bf6 {[%clk 0:00:02]} 28. Bxf6 {[%clk 0:01:08]}  gxf6 {[%clk 0:00:03]} 29. Rc7 {[%clk 0:01:08]}  a4 {[%clk 0:00:04]} 30. R7xc5 {[%clk 0:01:07]}  Rxc5 {[%clk 0:00:04]} 31. Rxc5 {[%clk 0:01:08]}  axb3 {[%clk 0:00:05]} 32. axb3 {[%clk 0:01:09]}  Rb8 {[%clk 0:00:05]} 33. Rc3 {[%clk 0:01:09]}  Bf5 {[%clk 0:00:05]} 34. g4 {[%clk 0:01:02]}  Be6 {[%clk 0:00:05]} 35. Kg2 {[%clk 0:01:02]}  Rxb3 {[%clk 0:00:06]} 36. Rc5 {[%clk 0:01:02]}  Rb2 {[%clk 0:00:05]} 37. Kg3 {[%clk 0:01:02]}  Kg7 {[%clk 0:00:05]} 38. Ra5 {[%clk 0:01:00]}  Rb1 {[%clk 0:00:03]} 39. Kg2 {[%clk 0:00:59]}  Bc8 {[%clk 0:00:02]} 40. e4 {[%clk 0:00:56]}  Bb7 {[%clk 0:00:03]} 41. f3 {[%clk 0:00:56]}  Rb2+ {[%clk 0:00:03]} 42. Kg3 {[%clk 0:00:56]}  Rb1 {[%clk 0:00:04]} 43. h4 {[%clk 0:00:56]}  Rb6 {[%clk 0:00:04]} 44. Rf5 {[%clk 0:00:54]}  Bc8 {[%clk 0:00:04]} 45. Rc5 {[%clk 0:00:54]}  Be6 {[%clk 0:00:05]} 46. Kf4 {[%clk 0:00:53]}  Rb1 {[%clk 0:00:04]} 47. Rc3 {[%clk 0:00:53]}  Rf1 {[%clk 0:00:03]} 48. Kg3 {[%clk 0:00:52]}  Ba2 {[%clk 0:00:02]} 49. Kg2 {[%clk 0:00:51]}  Ra1 {[%clk 0:00:01]} 50. Ra3 {[%clk 0:00:50]}  Be6 {[%clk 0:00:02]} 51. Rxa1 {[%clk 0:00:49]} 1-0


[Site "https://www.chess.com"]

[Event "Titled Tuesday Blitz August 09 Early 2022"]
[White "Silvestre, Christian"]
[Black "Sellitti, Federico"]
[WhiteFideId "30956269"]
[BlackFideId "821829"]
[WhiteElo "2288"]
[BlackElo "2523"]
[Result "1-0"]
[Round "03"]
[TimeControl "180+1"]
[Date "2022.08.09"]
[WhiteClock "0:00:03"]
[BlackClock "0:00:06"]

1. e4 {[%clk 0:03:00]}  c5 {[%clk 0:02:59]} 2. Nc3 {[%clk 0:02:52]}  Nc6 {[%clk 0:02:59]} 3. f4 {[%clk 0:02:51]}  g6 {[%clk 0:03:00]} 4. Bc4 {[%clk 0:02:37]}  Bg7 {[%clk 0:03:00]} 5. d3 {[%clk 0:02:38]}  e6 {[%clk 0:03:00]} 6. Nf3 {[%clk 0:02:38]}  Nge7 {[%clk 0:03:01]} 7. Bb3 {[%clk 0:02:38]}  O-O {[%clk 0:03:01]} 8. O-O {[%clk 0:02:38]}  Nd4 {[%clk 0:03:01]} 9. Nxd4 {[%clk 0:02:35]}  cxd4 {[%clk 0:03:02]} 10. Ne2 {[%clk 0:02:35]}  Nc6 {[%clk 0:03:03]} 11. Qe1 {[%clk 0:02:35]}  Na5 {[%clk 0:02:59]} 12. f5 {[%clk 0:02:34]}  Nxb3 {[%clk 0:02:59]} 13. axb3 {[%clk 0:02:35]}  d5 {[%clk 0:02:47]} 14. Ng3 {[%clk 0:02:28]}  dxe4 {[%clk 0:02:42]} 15. fxg6 {[%clk 0:02:21]}  hxg6 {[%clk 0:01:57]} 16. Nxe4 {[%clk 0:02:20]}  Bd7 {[%clk 0:01:37]} 17. Ng5 {[%clk 0:01:53]}  f6 {[%clk 0:00:30]} 18. Nxe6 {[%clk 0:01:49]}  Bxe6 {[%clk 0:00:31]} 19. Qxe6+ {[%clk 0:01:48]}  Rf7 {[%clk 0:00:32]} 20. Bg5 {[%clk 0:01:21]}  Qc8 {[%clk 0:00:27]} 21. Qd5 {[%clk 0:01:09]}  Qc6 {[%clk 0:00:13]} 22. Qxc6 {[%clk 0:01:06]}  bxc6 {[%clk 0:00:14]} 23. Bd2 {[%clk 0:01:03]}  Re8 {[%clk 0:00:14]} 24. Rfe1 {[%clk 0:01:01]}  Rfe7 {[%clk 0:00:13]} 25. Rxe7 {[%clk 0:01:01]}  Rxe7 {[%clk 0:00:14]} 26. Kf1 {[%clk 0:01:01]}  f5 {[%clk 0:00:13]} 27. Bb4 {[%clk 0:00:59]}  Rb7 {[%clk 0:00:07]} 28. Bc5 {[%clk 0:00:58]}  Rb5 {[%clk 0:00:04]} 29. b4 {[%clk 0:00:58]}  Bf8 {[%clk 0:00:02]} 30. Bxd4 {[%clk 0:00:47]}  Rxb4 {[%clk 0:00:01]} 31. Bc3 {[%clk 0:00:42]}  Rb7 {[%clk 0:00:01]} 32. d4 {[%clk 0:00:38]}  Bd6 {[%clk 0:00:01]} 33. h3 {[%clk 0:00:37]}  Kf7 {[%clk 0:00:02]} 34. Ke2 {[%clk 0:00:37]}  Ke6 {[%clk 0:00:02]} 35. Kd3 {[%clk 0:00:38]}  Kd5 {[%clk 0:00:03]} 36. b3 {[%clk 0:00:35]}  Rf7 {[%clk 0:00:01]} 37. Bd2 {[%clk 0:00:33]}  Ke6 {[%clk 0:00:01]} 38. c4 {[%clk 0:00:29]}  Rc7 {[%clk 0:00:01]} 39. Ra6 {[%clk 0:00:28]}  Kd7 {[%clk 0:00:01]} 40. b4 {[%clk 0:00:27]}  Be7 {[%clk 0:00:01]} 41. Bf4 {[%clk 0:00:23]}  Rb7 {[%clk 0:00:01]} 42. Be3 {[%clk 0:00:21]}  Bxb4 {[%clk 0:00:02]} 43. d5 {[%clk 0:00:21]}  cxd5 {[%clk 0:00:02]} 44. cxd5 {[%clk 0:00:21]}  Bd6 {[%clk 0:00:03]} 45. Rxa7 {[%clk 0:00:19]}  Rxa7 {[%clk 0:00:03]} 46. Bxa7 {[%clk 0:00:19]}  Bg3 {[%clk 0:00:04]} 47. Bd4 {[%clk 0:00:19]}  Kd6 {[%clk 0:00:04]} 48. Kc4 {[%clk 0:00:19]}  Bh2 {[%clk 0:00:04]} 49. Bc5+ {[%clk 0:00:19]}  Kd7 {[%clk 0:00:04]} 50. Kb5 {[%clk 0:00:19]}  Be5 {[%clk 0:00:04]} 51. Kc4 {[%clk 0:00:18]}  g5 {[%clk 0:00:04]} 52. Kd3 {[%clk 0:00:18]}  g4 {[%clk 0:00:04]} 53. hxg4 {[%clk 0:00:16]}  fxg4 {[%clk 0:00:05]} 54. Ke4 {[%clk 0:00:16]}  Bc7 {[%clk 0:00:04]} 55. Kf5 {[%clk 0:00:14]}  g3 {[%clk 0:00:04]} 56. Kg4 {[%clk 0:00:10]}  Bb8 {[%clk 0:00:03]} 57. Be3 {[%clk 0:00:08]}  Be5 {[%clk 0:00:02]} 58. Bf4 {[%clk 0:00:08]}  Kd6 {[%clk 0:00:01]} 59. Bxe5+ {[%clk 0:00:07]}  Kxe5 {[%clk 0:00:02]} 60. Kxg3 {[%clk 0:00:06]}  Kxd5 {[%clk 0:00:03]} 61. Kf4 {[%clk 0:00:07]}  Ke6 {[%clk 0:00:04]} 62. Kg5 {[%clk 0:00:06]}  Kf7 {[%clk 0:00:04]} 63. Kh6 {[%clk 0:00:06]}  Kf6 {[%clk 0:00:04]} 64. g4 {[%clk 0:00:05]}  Kf7 {[%clk 0:00:05]} 65. g5 {[%clk 0:00:03]}  Kg8 {[%clk 0:00:05]} 66. Kg6 {[%clk 0:00:01]}  Kh8 {[%clk 0:00:04]} 67. Kf7 {[%clk 0:00:02]}  Kh7 {[%clk 0:00:04]} 68. g6+ {[%clk 0:00:02]}  Kh6 {[%clk 0:00:05]} 69. g7 {[%clk 0:00:02]}  Kh5 {[%clk 0:00:06]} 70. g8=Q {[%clk 0:00:03]} 1-0


[Site "https://www.chess.com"]

[Event "Titled Tuesday Blitz August 09 Early 2022"]
[White "Skawinski, Arkadiusz"]
[Black "Mahalakshmi, M"]
[WhiteFideId "1126415"]
[BlackFideId "5001080"]
[WhiteElo "2149"]
[BlackElo "2176"]
[Result "0-1"]
[Round "03"]
[TimeControl "180+1"]
[Date "2022.08.09"]
[WhiteClock "0:00:12"]
[BlackClock "0:01:19"]

1. e4 {[%clk 0:01:47]}  c6 {[%clk 0:02:59]} 2. Nf3 {[%clk 0:01:47]}  d5 {[%clk 0:02:59]} 3. Nc3 {[%clk 0:01:48]}  dxe4 {[%clk 0:02:59]} 4. Nxe4 {[%clk 0:01:49]}  Nf6 {[%clk 0:02:59]} 5. Qe2 {[%clk 0:01:47]}  Nxe4 {[%clk 0:02:57]} 6. Qxe4 {[%clk 0:01:48]}  Nd7 {[%clk 0:02:54]} 7. Bc4 {[%clk 0:01:44]}  e6 {[%clk 0:02:53]} 8. a4 {[%clk 0:01:39]}  Nf6 {[%clk 0:02:53]} 9. Qe2 {[%clk 0:01:39]}  Be7 {[%clk 0:02:48]} 10. O-O {[%clk 0:01:36]}  O-O {[%clk 0:02:48]} 11. Ne5 {[%clk 0:01:36]}  Nd5 {[%clk 0:02:45]} 12. d4 {[%clk 0:01:32]}  Bf6 {[%clk 0:02:45]} 13. Bb3 {[%clk 0:01:25]}  Qc7 {[%clk 0:02:32]} 14. c4 {[%clk 0:01:24]}  Ne7 {[%clk 0:02:31]} 15. Bf4 {[%clk 0:01:21]}  Qb6 {[%clk 0:02:30]} 16. Qe3 {[%clk 0:01:06]}  Nf5 {[%clk 0:02:22]} 17. a5 {[%clk 0:00:29]}  Qxd4 {[%clk 0:02:08]} 18. Qxd4 {[%clk 0:00:21]}  Nxd4 {[%clk 0:02:08]} 19. Bd1 {[%clk 0:00:22]}  Rd8 {[%clk 0:01:44]} 20. Ng4 {[%clk 0:00:21]}  c5 {[%clk 0:01:35]} 21. Nxf6+ {[%clk 0:00:20]}  gxf6 {[%clk 0:01:35]} 22. Ra3 {[%clk 0:00:17]}  Bd7 {[%clk 0:01:29]} 23. Rg3+ {[%clk 0:00:16]}  Kh8 {[%clk 0:01:29]} 24. Bd6 {[%clk 0:00:14]}  Nf5 {[%clk 0:01:28]} 25. Bxc5 {[%clk 0:00:11]}  Nxg3 {[%clk 0:01:28]} 26. hxg3 {[%clk 0:00:12]}  Rdc8 {[%clk 0:01:20]} 27. b4 {[%clk 0:00:12]}  b6 {[%clk 0:01:20]} 28. axb6 {[%clk 0:00:12]}  axb6 {[%clk 0:01:20]} 29. Bxb6 {[%clk 0:00:13]}  Rxc4 {[%clk 0:01:21]} 30. Bc5 {[%clk 0:00:13]}  Ra1 {[%clk 0:01:20]} 31. Be2 {[%clk 0:00:13]}  Rxf1+ {[%clk 0:01:19]} 32. Bxf1 {[%clk 0:00:12]}  Rc1 {[%clk 0:01:19]} 0-1


[Site "https://www.chess.com"]

[Event "Titled Tuesday Blitz August 09 Early 2022"]
[White "Smietanska, Wiktoria"]
[Black "Mouhamad, Joachim"]
[WhiteFideId "21869359"]
[BlackFideId "656410"]
[WhiteElo "1883"]
[BlackElo "2147"]
[Result "1/2-1/2"]
[Round "03"]
[TimeControl "180+1"]
[Date "2022.08.09"]
[WhiteClock "0:00:12"]
[BlackClock "0:00:11"]

1. c4 {[%clk 0:03:00]}  e5 {[%clk 0:02:59]} 2. Nc3 {[%clk 0:03:00]}  Nf6 {[%clk 0:02:59]} 3. Nf3 {[%clk 0:02:57]}  Nc6 {[%clk 0:02:58]} 4. e4 {[%clk 0:02:54]}  Bb4 {[%clk 0:02:52]} 5. d3 {[%clk 0:02:41]}  Bxc3+ {[%clk 0:02:51]} 6. bxc3 {[%clk 0:02:39]}  O-O {[%clk 0:02:47]} 7. g3 {[%clk 0:02:37]}  d6 {[%clk 0:02:41]} 8. Bg2 {[%clk 0:02:38]}  h6 {[%clk 0:02:39]} 9. O-O {[%clk 0:02:37]}  Be6 {[%clk 0:02:35]} 10. h3 {[%clk 0:02:20]}  Qd7 {[%clk 0:02:33]} 11. Kh2 {[%clk 0:02:07]}  Nh7 {[%clk 0:02:24]} 12. Ne1 {[%clk 0:01:59]}  f5 {[%clk 0:02:16]} 13. exf5 {[%clk 0:01:55]}  Bxf5 {[%clk 0:02:13]} 14. f4 {[%clk 0:01:53]}  Rae8 {[%clk 0:02:08]} 15. g4 {[%clk 0:01:51]}  Be6 {[%clk 0:02:03]} 16. f5 {[%clk 0:01:50]}  Bf7 {[%clk 0:02:02]} 17. Be3 {[%clk 0:01:46]}  b6 {[%clk 0:01:53]} 18. Qd2 {[%clk 0:01:45]}  Na5 {[%clk 0:01:30]} 19. Nf3 {[%clk 0:01:35]}  c6 {[%clk 0:01:29]} 20. Nh4 {[%clk 0:01:27]}  d5 {[%clk 0:01:26]} 21. cxd5 {[%clk 0:01:26]}  cxd5 {[%clk 0:01:26]} 22. Ng6 {[%clk 0:01:24]}  Bxg6 {[%clk 0:01:20]} 23. fxg6 {[%clk 0:01:25]}  Nf6 {[%clk 0:01:19]} 24. g5 {[%clk 0:01:12]}  hxg5 {[%clk 0:01:13]} 25. Bxg5 {[%clk 0:01:12]}  e4 {[%clk 0:00:55]} 26. Bxf6 {[%clk 0:01:07]}  Rxf6 {[%clk 0:00:51]} 27. Rxf6 {[%clk 0:01:06]}  gxf6 {[%clk 0:00:52]} 28. dxe4 {[%clk 0:01:05]}  Qc7+ {[%clk 0:00:49]} 29. Kh1 {[%clk 0:00:57]}  dxe4 {[%clk 0:00:46]} 30. Qd5+ {[%clk 0:00:54]}  Kg7 {[%clk 0:00:43]} 31. Bxe4 {[%clk 0:00:44]}  Re5 {[%clk 0:00:33]} 32. Qd4 {[%clk 0:00:38]}  Nc6 {[%clk 0:00:28]} 33. Qd3 {[%clk 0:00:31]}  Ne7 {[%clk 0:00:25]} 34. Rd1 {[%clk 0:00:21]}  Qc8 {[%clk 0:00:17]} 35. Bg2 {[%clk 0:00:20]}  Qe6 {[%clk 0:00:15]} 36. Qd8 {[%clk 0:00:19]}  Nxg6 {[%clk 0:00:12]} 37. Rd7+ {[%clk 0:00:18]}  Kh6 {[%clk 0:00:13]} 38. Rd1 {[%clk 0:00:17]}  Re1+ {[%clk 0:00:13]} 39. Rxe1 {[%clk 0:00:15]}  Qxe1+ {[%clk 0:00:14]} 40. Kh2 {[%clk 0:00:16]}  Qe5+ {[%clk 0:00:14]} 41. Kh1 {[%clk 0:00:16]}  Qxc3 {[%clk 0:00:12]} 42. Qd6 {[%clk 0:00:13]}  Qe1+ {[%clk 0:00:11]} 43. Kh2 {[%clk 0:00:13]}  Qe5+ {[%clk 0:00:12]} 44. Qxe5 {[%clk 0:00:12]}  fxe5 {[%clk 0:00:10]} 45. Bd5 {[%clk 0:00:13]}  Nf4 {[%clk 0:00:10]} 46. Bc4 {[%clk 0:00:12]}  Kg5 {[%clk 0:00:09]} 47. Kg3 {[%clk 0:00:13]}  Kf5 {[%clk 0:00:09]} 48. h4 {[%clk 0:00:11]}  e4 {[%clk 0:00:09]} 49. Bf1 {[%clk 0:00:10]}  e3 {[%clk 0:00:08]} 50. Kf3 {[%clk 0:00:10]}  e2 {[%clk 0:00:08]} 51. Bxe2 {[%clk 0:00:11]}  Nxe2 {[%clk 0:00:07]} 52. Kxe2 {[%clk 0:00:12]}  Kg4 {[%clk 0:00:07]} 53. Kd3 {[%clk 0:00:12]}  Kxh4 {[%clk 0:00:07]} 54. Kc4 {[%clk 0:00:13]}  Kg4 {[%clk 0:00:08]} 55. Kb5 {[%clk 0:00:13]}  Kf4 {[%clk 0:00:08]} 56. Ka6 {[%clk 0:00:14]}  Ke4 {[%clk 0:00:08]} 57. Kxa7 {[%clk 0:00:14]}  b5 {[%clk 0:00:09]} 58. Kb6 {[%clk 0:00:15]}  b4 {[%clk 0:00:08]} 59. Kb5 {[%clk 0:00:15]}  Kd5 {[%clk 0:00:08]} 60. Kxb4 {[%clk 0:00:14]}  Kc6 {[%clk 0:00:09]} 61. a4 {[%clk 0:00:14]}  Kb7 {[%clk 0:00:10]} 62. Kb5 {[%clk 0:00:14]}  Ka8 {[%clk 0:00:11]} 63. Ka6 {[%clk 0:00:12]} 1/2-1/2


[Site "https://www.chess.com"]

[Event "Titled Tuesday Blitz August 09 Early 2022"]
[White "Sokolovsky, Yahli"]
[Black "Kukreja, Sankalp"]
[WhiteFideId "2820242"]
[BlackFideId "45027676"]
[WhiteElo "1867"]
[BlackElo "2004"]
[Result "1-0"]
[Round "03"]
[TimeControl "180+1"]
[Date "2022.08.09"]
[WhiteClock "0:02:13"]
[BlackClock "0:02:23"]

1. b3 {[%clk 0:03:00]}  d5 {[%clk 0:02:59]} 2. Bb2 {[%clk 0:03:01]}  c5 {[%clk 0:02:59]} 3. e3 {[%clk 0:03:00]}  Nc6 {[%clk 0:03:00]} 4. Bb5 {[%clk 0:03:00]}  Nf6 {[%clk 0:03:00]} 5. Nf3 {[%clk 0:03:00]}  e6 {[%clk 0:02:59]} 6. d4 {[%clk 0:02:48]}  Be7 {[%clk 0:02:56]} 7. O-O {[%clk 0:02:48]}  O-O {[%clk 0:02:56]} 8. Bxc6 {[%clk 0:02:47]}  bxc6 {[%clk 0:02:56]} 9. Ne5 {[%clk 0:02:47]}  Qc7 {[%clk 0:02:54]} 10. Nd2 {[%clk 0:02:46]}  Bb7 {[%clk 0:02:51]} 11. f4 {[%clk 0:02:37]}  Nd7 {[%clk 0:02:49]} 12. Rf3 {[%clk 0:02:35]}  Rfe8 {[%clk 0:02:37]} 13. Nxd7 {[%clk 0:02:17]}  Qxd7 {[%clk 0:02:38]} 14. dxc5 {[%clk 0:02:18]}  Bxc5 {[%clk 0:02:33]} 15. Rg3 {[%clk 0:02:18]}  d4 {[%clk 0:02:33]} 16. Ne4 {[%clk 0:02:13]}  Bb6 {[%clk 0:02:23]} 17. Nf6+ {[%clk 0:02:13]} 1-0


[Site "https://www.chess.com"]

[Event "Titled Tuesday Blitz August 09 Early 2022"]
[White "Srihari L R"]
[Black "Malyi, Viacheslav"]
[WhiteFideId "46617116"]
[BlackFideId "14123983"]
[WhiteElo "2170"]
[BlackElo "2190"]
[Result "1-0"]
[Round "03"]
[TimeControl "180+1"]
[Date "2022.08.09"]
[WhiteClock "0:00:29"]
[BlackClock "0:00:14"]

1. c4 {[%clk 0:03:00]}  c5 {[%clk 0:02:55]} 2. Nc3 {[%clk 0:02:59]}  Nc6 {[%clk 0:02:55]} 3. g3 {[%clk 0:02:56]}  g6 {[%clk 0:02:54]} 4. Bg2 {[%clk 0:02:54]}  Bg7 {[%clk 0:02:55]} 5. Nf3 {[%clk 0:02:53]}  Nf6 {[%clk 0:02:55]} 6. O-O {[%clk 0:02:52]}  O-O {[%clk 0:02:55]} 7. d4 {[%clk 0:02:51]}  cxd4 {[%clk 0:02:56]} 8. Nxd4 {[%clk 0:02:52]}  Nxd4 {[%clk 0:02:57]} 9. Qxd4 {[%clk 0:02:52]}  d6 {[%clk 0:02:58]} 10. b3 {[%clk 0:02:51]}  Be6 {[%clk 0:02:58]} 11. Qd3 {[%clk 0:02:50]}  Qa5 {[%clk 0:02:58]} 12. Bb2 {[%clk 0:02:49]}  Rab8 {[%clk 0:02:57]} 13. Rfd1 {[%clk 0:02:48]}  a6 {[%clk 0:02:56]} 14. Nd5 {[%clk 0:02:32]}  Nxd5 {[%clk 0:02:46]} 15. Bxg7 {[%clk 0:02:30]}  Kxg7 {[%clk 0:02:46]} 16. cxd5 {[%clk 0:02:25]}  Bf5 {[%clk 0:02:43]} 17. Qd4+ {[%clk 0:02:22]}  Kg8 {[%clk 0:02:42]} 18. e4 {[%clk 0:02:21]}  Bd7 {[%clk 0:02:39]} 19. e5 {[%clk 0:02:20]}  Rfc8 {[%clk 0:02:22]} 20. e6 {[%clk 0:02:16]}  fxe6 {[%clk 0:02:23]} 21. dxe6 {[%clk 0:02:15]}  Bxe6 {[%clk 0:02:23]} 22. Re1 {[%clk 0:02:06]}  Bf7 {[%clk 0:02:06]} 23. Rxe7 {[%clk 0:02:01]}  Qc3 {[%clk 0:02:05]} 24. Qxc3 {[%clk 0:01:55]}  Rxc3 {[%clk 0:02:06]} 25. Rxb7 {[%clk 0:01:52]}  Rxb7 {[%clk 0:02:05]} 26. Bxb7 {[%clk 0:01:51]}  a5 {[%clk 0:02:06]} 27. Rd1 {[%clk 0:01:51]}  Rc2 {[%clk 0:02:01]} 28. Rxd6 {[%clk 0:01:29]}  Rxa2 {[%clk 0:02:00]} 29. Bd5 {[%clk 0:01:28]}  Bxd5 {[%clk 0:01:51]} 30. Rxd5 {[%clk 0:01:27]}  a4 {[%clk 0:01:51]} 31. bxa4 {[%clk 0:01:26]}  Rxa4 {[%clk 0:01:52]} 32. Rd7 {[%clk 0:01:27]}  Rb4 {[%clk 0:01:38]} 33. Kg2 {[%clk 0:01:26]}  Ra4 {[%clk 0:01:38]} 34. Rb7 {[%clk 0:01:18]}  Rc4 {[%clk 0:01:38]} 35. h3 {[%clk 0:01:11]}  Ra4 {[%clk 0:01:37]} 36. f4 {[%clk 0:01:11]}  Ra3 {[%clk 0:01:35]} 37. h4 {[%clk 0:01:02]}  h5 {[%clk 0:01:32]} 38. Rb5 {[%clk 0:00:59]}  Kg7 {[%clk 0:01:31]} 39. Rg5 {[%clk 0:00:59]}  Kh6 {[%clk 0:01:30]} 40. Kf2 {[%clk 0:00:57]}  Rb3 {[%clk 0:01:30]} 41. Ke2 {[%clk 0:00:57]}  Ra3 {[%clk 0:01:30]} 42. Kd2 {[%clk 0:00:57]}  Rb3 {[%clk 0:01:29]} 43. Kc2 {[%clk 0:00:57]}  Rf3 {[%clk 0:01:29]} 44. Kd2 {[%clk 0:00:56]}  Ra3 {[%clk 0:01:29]} 45. Ke2 {[%clk 0:00:56]}  Rb3 {[%clk 0:01:29]} 46. Kf2 {[%clk 0:00:54]}  Ra3 {[%clk 0:01:29]} 47. Kg1 {[%clk 0:00:55]}  Rb3 {[%clk 0:01:26]} 48. Kh2 {[%clk 0:00:54]}  Ra3 {[%clk 0:01:26]} 49. Kh3 {[%clk 0:00:54]}  Rb3 {[%clk 0:01:26]} 50. Rc5 {[%clk 0:00:54]}  Ra3 {[%clk 0:01:25]} 51. Rc6 {[%clk 0:00:54]}  Kg7 {[%clk 0:01:24]} 52. Rb6 {[%clk 0:00:54]}  Rc3 {[%clk 0:01:22]} 53. Rb5 {[%clk 0:00:52]}  Kh6 {[%clk 0:01:20]} 54. Rb8 {[%clk 0:00:46]}  Ra3 {[%clk 0:01:17]} 55. Rf8 {[%clk 0:00:46]}  Rb3 {[%clk 0:01:10]} 56. Rf7 {[%clk 0:00:45]}  Ra3 {[%clk 0:01:09]} 57. Rb7 {[%clk 0:00:44]}  Rc3 {[%clk 0:01:08]} 58. Ra7 {[%clk 0:00:44]}  Rb3 {[%clk 0:01:08]} 59. Ra6 {[%clk 0:00:44]}  Kg7 {[%clk 0:01:06]} 60. Ra5 {[%clk 0:00:44]}  Rc3 {[%clk 0:01:03]} 61. f5 {[%clk 0:00:43]}  gxf5 {[%clk 0:01:04]} 62. Rxf5 {[%clk 0:00:44]}  Kg6 {[%clk 0:01:03]} 63. Rg5+ {[%clk 0:00:44]}  Kh6 {[%clk 0:01:03]} 64. Kg2 {[%clk 0:00:44]}  Rb3 {[%clk 0:01:02]} 65. Rf5 {[%clk 0:00:44]}  Rc3 {[%clk 0:01:01]} 66. Rg5 {[%clk 0:00:43]}  Rb3 {[%clk 0:01:01]} 67. Kf2 {[%clk 0:00:44]}  Rc3 {[%clk 0:01:01]} 68. Re5 {[%clk 0:00:40]}  Kg6 {[%clk 0:00:58]} 69. Re6+ {[%clk 0:00:37]}  Kg7 {[%clk 0:00:56]} 70. Rd6 {[%clk 0:00:36]}  Rb3 {[%clk 0:00:53]} 71. Re6 {[%clk 0:00:36]}  Rc3 {[%clk 0:00:53]} 72. Re3 {[%clk 0:00:36]}  Rc4 {[%clk 0:00:50]} 73. Kf3 {[%clk 0:00:36]}  Kg6 {[%clk 0:00:49]} 74. Re4 {[%clk 0:00:35]}  Rc1 {[%clk 0:00:47]} 75. Re6+ {[%clk 0:00:32]}  Kf5 {[%clk 0:00:45]} 76. Rh6 {[%clk 0:00:32]}  Rc3+ {[%clk 0:00:43]} 77. Kg2 {[%clk 0:00:32]}  Kg4 {[%clk 0:00:35]} 78. Rg6+ {[%clk 0:00:32]}  Kf5 {[%clk 0:00:32]} 79. Rg5+ {[%clk 0:00:32]}  Kf6 {[%clk 0:00:19]} 80. Rxh5 {[%clk 0:00:32]}  Kg6 {[%clk 0:00:19]} 81. Rg5+ {[%clk 0:00:32]}  Kh6 {[%clk 0:00:19]} 82. Ra5 {[%clk 0:00:32]}  Rc4 {[%clk 0:00:19]} 83. Kh3 {[%clk 0:00:32]}  Rc1 {[%clk 0:00:19]} 84. Ra4 {[%clk 0:00:31]}  Kh5 {[%clk 0:00:17]} 85. Ra5+ {[%clk 0:00:31]}  Kg6 {[%clk 0:00:17]} 86. Re5 {[%clk 0:00:30]}  Rb1 {[%clk 0:00:17]} 87. h5+ {[%clk 0:00:29]}  Kh6 {[%clk 0:00:16]} 88. Kh4 {[%clk 0:00:29]}  Rh1+ {[%clk 0:00:14]} 89. Kg4 {[%clk 0:00:29]}  Re1 {[%clk 0:00:14]} 90. Rxe1 {[%clk 0:00:29]} 1-0


[Site "https://www.chess.com"]